[Event "*** Titled Tuesday Blitz"]
[Site "Chess.com"]
[Date "2020.11.03"]
[Round "1"]
[White "talman67"]
[Black "Svet99"]
[Result "1-0"]
[WhiteElo "2537"]
[BlackElo "2162"]
[TimeControl "180+1"]
[EndTime "10:05:39 PST"]
[Termination "talman67 won on time"]

1. e4 {[%clk 0:03:00.9]} 1... c6 {[%clk 0:01:38.9]} 2. d4 {[%clk 0:03:00.2]}
2... d5 {[%clk 0:01:38.8]} 3. e5 {[%clk 0:03:00.9]} 3... Bf5 {[%clk 0:01:38.3]}
4. Nf3 {[%clk 0:03:01.6]} 4... e6 {[%clk 0:01:38.6]} 5. Be2 {[%clk 0:03:02.3]}
5... Nd7 {[%clk 0:01:37.9]} 6. O-O {[%clk 0:03:02.6]} 6... c5 {[%clk 0:01:38]}
7. c4 {[%clk 0:03:02.5]} 7... Ne7 {[%clk 0:01:37.3]} 8. Nc3 {[%clk 0:03:02.3]}
8... dxc4 {[%clk 0:01:34.3]} 9. d5 {[%clk 0:03:01.2]} 9... Nxd5 {[%clk
0:01:32.9]} 10. Nxd5 {[%clk 0:03:02.1]} 10... exd5 {[%clk 0:01:33.1]} 11. Qxd5
{[%clk 0:03:03]} 11... Be6 {[%clk 0:01:33]} 12. Qxb7 {[%clk 0:03:02.9]} 12...
Qb8 {[%clk 0:01:28.4]} 13. Qe4 {[%clk 0:03:02.9]} 13... Be7 {[%clk 0:01:26.8]}
14. Bxc4 {[%clk 0:03:02.2]} 14... Bxc4 {[%clk 0:01:26.1]} 15. Qxc4 {[%clk
0:03:03.1]} 15... O-O {[%clk 0:01:26.1]} 16. e6 {[%clk 0:03:01.8]} 16... Nb6
{[%clk 0:01:21.1]} 17. exf7+ {[%clk 0:02:59.4]} 17... Rxf7 {[%clk 0:01:22]} 18.
Qe6 {[%clk 0:02:59.7]} 18... Qd6 {[%clk 0:01:21.4]} 19. Qxd6 {[%clk 0:02:47.4]}
19... Bxd6 {[%clk 0:01:22.3]} 20. b3 {[%clk 0:02:48.3]} 20... Rf6 {[%clk
0:01:17.8]} 21. Be3 {[%clk 0:02:47.5]} 21... Raf8 {[%clk 0:01:15]} 22. Rac1
{[%clk 0:02:43.8]} 22... Rg6 {[%clk 0:01:14]} 23. Nd2 {[%clk 0:02:37]} 23... Nd5
{[%clk 0:01:11.6]} 24. Bxc5 {[%clk 0:02:35.8]} 24... Bxc5 {[%clk 0:00:26.9]} 25.
Rxc5 {[%clk 0:02:36.7]} 25... Nf4 {[%clk 0:00:27.1]} 26. g3 {[%clk 0:02:36.7]}
26... Nh3+ {[%clk 0:00:25.9]} 27. Kg2 {[%clk 0:02:37.1]} 27... Nf4+ {[%clk
0:00:25.2]} 28. Kh1 {[%clk 0:02:37.5]} 28... Nd3 {[%clk 0:00:24.7]} 29. Rc7
{[%clk 0:02:28.4]} 29... Nxf2+ {[%clk 0:00:24.4]} 30. Kg2 {[%clk 0:02:28.8]}
30... Rd6 {[%clk 0:00:23.7]} 31. Nc4 {[%clk 0:02:18.3]} 31... Rdf6 {[%clk
0:00:19.5]} 32. Rxa7 {[%clk 0:02:18.4]} 32... h5 {[%clk 0:00:14.1]} 33. h4
{[%clk 0:02:12.8]} 33... g5 {[%clk 0:00:13.3]} 34. hxg5 {[%clk 0:02:12.3]} 34...
Rf5 {[%clk 0:00:13.1]} 35. Nd6 {[%clk 0:02:05.9]} 35... Rf3 {[%clk 0:00:11.7]}
36. Ne4 {[%clk 0:02:02.1]} 36... R3f5 {[%clk 0:00:06.1]} 37. Rxf2 {[%clk
0:02:01.2]} 37... Rxf2+ {[%clk 0:00:05.5]} 38. Nxf2 {[%clk 0:02:02]} 1-0

[Event "*** Titled Tuesday Blitz"]
[Site "Chess.com"]
[Date "2020.11.03"]
[Round "1"]
[White "Kurai"]
[Black "HrvojeZagreb"]
[Result "1-0"]
[WhiteElo "2567"]
[BlackElo "2237"]
[TimeControl "180+1"]
[EndTime "10:05:48 PST"]
[Termination "Kurai won by resignation"]

1. e4 {[%clk 0:02:58.9]} 1... e6 {[%clk 0:02:59.3]} 2. d4 {[%clk 0:02:58.1]}
2... d5 {[%clk 0:02:59.4]} 3. Nc3 {[%clk 0:02:58.7]} 3... dxe4 {[%clk
0:02:59.7]} 4. Nxe4 {[%clk 0:02:59.6]} 4... Nd7 {[%clk 0:03:00]} 5. Nf3 {[%clk
0:02:59.2]} 5... Ngf6 {[%clk 0:03:00.2]} 6. Nxf6+ {[%clk 0:02:57.7]} 6... Nxf6
{[%clk 0:03:01.1]} 7. Bg5 {[%clk 0:02:55.2]} 7... c5 {[%clk 0:02:57.9]} 8. Bd3
{[%clk 0:02:53.5]} 8... h6 {[%clk 0:02:55.5]} 9. Bh4 {[%clk 0:02:52.7]} 9...
cxd4 {[%clk 0:02:51.5]} 10. Nxd4 {[%clk 0:02:50]} 10... Qc7 {[%clk 0:02:31.9]}
11. Qe2 {[%clk 0:02:45.5]} 11... Bb4+ {[%clk 0:02:28.2]} 12. Kf1 {[%clk
0:02:29.4]} 12... Be7 {[%clk 0:02:22.2]} 13. Re1 {[%clk 0:02:20.6]} 13... O-O
{[%clk 0:02:20.6]} 14. Nf5 {[%clk 0:02:10.2]} 14... exf5 {[%clk 0:02:05.4]} 15.
Qxe7 {[%clk 0:02:09.5]} 15... Qxe7 {[%clk 0:02:06.3]} 16. Rxe7 {[%clk
0:02:09.6]} 16... Nd5 {[%clk 0:02:04.7]} 17. Re5 {[%clk 0:02:05.3]} 17... Nb4
{[%clk 0:01:56.3]} 18. Bb5 {[%clk 0:01:44.9]} 18... g5 {[%clk 0:01:40.6]} 19.
Bg3 {[%clk 0:01:38.2]} 19... f4 {[%clk 0:01:40.6]} 20. h4 {[%clk 0:01:36.8]}
20... f6 {[%clk 0:01:35.1]} 21. Re7 {[%clk 0:01:17.7]} 21... Bf5 {[%clk
0:00:19.8]} 22. Bc4+ {[%clk 0:01:11.8]} 22... Kh8 {[%clk 0:00:17.8]} 23. hxg5
{[%clk 0:01:12]} 1-0

[Event "*** Titled Tuesday Blitz"]
[Site "Chess.com"]
[Date "2020.11.03"]
[Round "1"]
[White "CzechmVIII"]
[Black "GameOverBro"]
[Result "0-1"]
[WhiteElo "2153"]
[BlackElo "2529"]
[TimeControl "180+1"]
[EndTime "10:05:52 PST"]
[Termination "GameOverBro won on time"]

1. e4 {[%clk 0:03:00.9]} 1... d6 {[%clk 0:02:59.7]} 2. d4 {[%clk 0:03:00.2]}
2... Nf6 {[%clk 0:02:59.8]} 3. Nc3 {[%clk 0:03:00.3]} 3... e5 {[%clk 0:03:00.1]}
4. Nge2 {[%clk 0:02:59.7]} 4... c6 {[%clk 0:02:59.7]} 5. a4 {[%clk 0:02:58.6]}
5... Nbd7 {[%clk 0:02:59.3]} 6. g3 {[%clk 0:02:58.8]} 6... h5 {[%clk 0:02:59.2]}
7. h3 {[%clk 0:02:58.4]} 7... Be7 {[%clk 0:02:59.4]} 8. Bg2 {[%clk 0:02:58.6]}
8... b6 {[%clk 0:02:59.6]} 9. O-O {[%clk 0:02:57.5]} 9... a6 {[%clk 0:03:00]}
10. Be3 {[%clk 0:02:56.9]} 10... Bb7 {[%clk 0:03:00.2]} 11. Qd2 {[%clk
0:02:56.2]} 11... b5 {[%clk 0:03:00.5]} 12. f4 {[%clk 0:02:38.9]} 12... O-O
{[%clk 0:02:59.4]} 13. b3 {[%clk 0:02:27.5]} 13... Re8 {[%clk 0:02:57.3]} 14.
Rad1 {[%clk 0:02:24.9]} 14... Qc7 {[%clk 0:02:57.1]} 15. f5 {[%clk 0:02:21.1]}
15... b4 {[%clk 0:02:53.8]} 16. Na2 {[%clk 0:02:17.9]} 16... exd4 {[%clk
0:02:53.4]} 17. Bxd4 {[%clk 0:02:05.5]} 17... c5 {[%clk 0:02:53.6]} 18. Bxf6
{[%clk 0:01:57]} 18... Nxf6 {[%clk 0:02:54.5]} 19. Qf4 {[%clk 0:01:49.4]} 19...
Bf8 {[%clk 0:02:52.8]} 20. g4 {[%clk 0:01:46.7]} 20... hxg4 {[%clk 0:02:52.6]}
21. hxg4 {[%clk 0:01:47.6]} 21... Nxe4 {[%clk 0:02:52.6]} 22. Ng3 {[%clk
0:01:39]} 22... Nxg3 {[%clk 0:02:47.9]} 23. Qxg3 {[%clk 0:01:38.7]} 23... Bxg2
{[%clk 0:02:44.5]} 24. Qxg2 {[%clk 0:01:34.3]} 24... Re3 {[%clk 0:02:39.1]} 25.
Rf3 {[%clk 0:01:29.9]} 25... Rae8 {[%clk 0:02:38.8]} 26. Rxe3 {[%clk 0:01:22.4]}
26... Rxe3 {[%clk 0:02:38.4]} 27. Qf2 {[%clk 0:01:20]} 27... Qe7 {[%clk
0:02:35]} 28. Nc1 {[%clk 0:01:16.8]} 28... Qg5 {[%clk 0:02:31]} 29. Kf1 {[%clk
0:01:07.6]} 29... Rh3 {[%clk 0:02:26.5]} 30. Qg2 {[%clk 0:00:35.7]} 30... Qf4+
{[%clk 0:02:26]} 31. Ke1 {[%clk 0:00:24.5]} 31... Rg3 {[%clk 0:02:22.2]} 32. Qf1
{[%clk 0:00:13]} 32... Qxg4 {[%clk 0:02:20.1]} 33. Kd2 {[%clk 0:00:13.3]} 33...
Rg2+ {[%clk 0:02:14.6]} 34. Ne2 {[%clk 0:00:11.7]} 34... Qg5+ {[%clk 0:02:14.5]}
35. Ke1 {[%clk 0:00:07.8]} 35... Qh4+ {[%clk 0:02:04.5]} 36. Kd2 {[%clk
0:00:06.5]} 36... Qg5+ {[%clk 0:02:01.8]} 37. Ke1 {[%clk 0:00:06.4]} 37... Qh4+
{[%clk 0:01:58]} 38. Kd2 {[%clk 0:00:06.5]} 38... Qd4+ {[%clk 0:01:53.1]} 39.
Kc1 {[%clk 0:00:06.3]} 39... Qe3+ {[%clk 0:01:53]} 40. Rd2 {[%clk 0:00:03.4]}
40... g6 {[%clk 0:01:49.4]} 0-1

[Event "*** Titled Tuesday Blitz"]
[Site "Chess.com"]
[Date "2020.11.03"]
[Round "1"]
[White "BJthechessgod"]
[Black "Fy_Rakotomaharo"]
[Result "0-1"]
[WhiteElo "2303"]
[BlackElo "2623"]
[TimeControl "180+1"]
[EndTime "10:05:53 PST"]
[Termination "Fy_Rakotomaharo won by resignation"]

1. e4 {[%clk 0:02:55.2]} 1... c6 {[%clk 0:03:00.1]} 2. d4 {[%clk 0:02:55]} 2...
d5 {[%clk 0:03:00.4]} 3. Nc3 {[%clk 0:02:55.7]} 3... dxe4 {[%clk 0:02:59.6]} 4.
Nxe4 {[%clk 0:02:56.6]} 4... Bf5 {[%clk 0:02:56]} 5. Ng3 {[%clk 0:02:56.8]} 5...
Bg6 {[%clk 0:02:56.6]} 6. h4 {[%clk 0:02:57.5]} 6... h6 {[%clk 0:02:57.2]} 7.
Nf3 {[%clk 0:02:58.1]} 7... Nd7 {[%clk 0:02:57.5]} 8. h5 {[%clk 0:02:58]} 8...
Bh7 {[%clk 0:02:57.6]} 9. Bd3 {[%clk 0:02:58.9]} 9... Bxd3 {[%clk 0:02:57.8]}
10. Qxd3 {[%clk 0:02:59.8]} 10... e6 {[%clk 0:02:57.4]} 11. Bf4 {[%clk
0:02:59.7]} 11... Qa5+ {[%clk 0:02:57.7]} 12. Bd2 {[%clk 0:02:58.2]} 12... Bb4
{[%clk 0:02:57.1]} 13. c3 {[%clk 0:02:57.4]} 13... Be7 {[%clk 0:02:53.7]} 14. c4
{[%clk 0:02:49.3]} 14... Bb4 {[%clk 0:02:51.9]} 15. a3 {[%clk 0:02:37.8]} 15...
Bxd2+ {[%clk 0:02:50.5]} 16. Nxd2 {[%clk 0:02:36.2]} 16... Ngf6 {[%clk
0:02:45.1]} 17. b4 {[%clk 0:02:35.7]} 17... Qc7 {[%clk 0:02:43.9]} 18. Nde4
{[%clk 0:02:28.7]} 18... O-O {[%clk 0:02:39.8]} 19. Nxf6+ {[%clk 0:02:19.5]}
19... Nxf6 {[%clk 0:02:39.8]} 20. Ne4 {[%clk 0:02:18.6]} 20... Qf4 {[%clk
0:02:27.9]} 21. Nxf6+ {[%clk 0:02:14.6]} 21... Qxf6 {[%clk 0:02:28.8]} 22. Rd1
{[%clk 0:02:12.6]} 22... Rfd8 {[%clk 0:02:02.9]} 23. O-O {[%clk 0:01:58.6]}
23... Qh4 {[%clk 0:02:02.6]} 24. Qe2 {[%clk 0:01:28.8]} 24... Rxd4 {[%clk
0:01:48.3]} 25. Rxd4 {[%clk 0:01:29.7]} 25... Qxd4 {[%clk 0:01:48.2]} 26. Rd1
{[%clk 0:01:30.4]} 26... Qc3 {[%clk 0:01:43]} 27. Rd7 {[%clk 0:01:29.5]} 27...
Qxa3 {[%clk 0:01:25.7]} 28. Rxb7 {[%clk 0:01:27.9]} 28... Qa1+ {[%clk
0:01:07.3]} 29. Kh2 {[%clk 0:01:16.8]} 29... Qf6 {[%clk 0:01:07.3]} 30. g3
{[%clk 0:01:11.2]} 30... a5 {[%clk 0:00:56.9]} 31. bxa5 {[%clk 0:01:00.8]} 31...
Rxa5 {[%clk 0:00:56.5]} 32. Rb8+ {[%clk 0:00:56.5]} 32... Kh7 {[%clk 0:00:56.6]}
33. Qe4+ {[%clk 0:00:57]} 33... Qf5 {[%clk 0:00:56.6]} 34. Qxf5+ {[%clk
0:00:54.4]} 34... Rxf5 {[%clk 0:00:57.5]} 35. Kg2 {[%clk 0:00:50.9]} 35... Rxh5
{[%clk 0:00:55.9]} 36. Rc8 {[%clk 0:00:51.2]} 36... Rc5 {[%clk 0:00:55.8]} 37.
Rc7 {[%clk 0:00:51.8]} 37... Kg6 {[%clk 0:00:56.1]} 38. f4 {[%clk 0:00:51.9]}
38... Rxc4 {[%clk 0:00:56.5]} 39. Kf3 {[%clk 0:00:52.8]} 39... h5 {[%clk
0:00:56.4]} 40. g4 {[%clk 0:00:50.6]} 40... Rc3+ {[%clk 0:00:55.3]} 41. Ke4
{[%clk 0:00:50.8]} 41... hxg4 {[%clk 0:00:55.9]} 0-1

[Event "*** Titled Tuesday Blitz"]
[Site "Chess.com"]
[Date "2020.11.03"]
[Round "1"]
[White "Korchmar_Vasiliy"]
[Black "FMalexhdez"]
[Result "1-0"]
[WhiteElo "2617"]
[BlackElo "2300"]
[TimeControl "180+1"]
[EndTime "10:05:55 PST"]
[Termination "Korchmar_Vasiliy won on time"]

1. d4 {[%clk 0:03:00.9]} 1... Nf6 {[%clk 0:02:59.2]} 2. Nf3 {[%clk 0:03:00.9]}
2... e6 {[%clk 0:02:59.5]} 3. Bf4 {[%clk 0:03:01.1]} 3... d5 {[%clk 0:02:59.6]}
4. e3 {[%clk 0:03:00.9]} 4... Be7 {[%clk 0:02:59.8]} 5. Ne5 {[%clk 0:02:51.5]}
5... Nbd7 {[%clk 0:02:56.7]} 6. Nd2 {[%clk 0:02:48.9]} 6... Nxe5 {[%clk
0:02:56.5]} 7. dxe5 {[%clk 0:02:47.9]} 7... Nd7 {[%clk 0:02:42.1]} 8. h4 {[%clk
0:02:48.1]} 8... c5 {[%clk 0:02:40.5]} 9. Qg4 {[%clk 0:02:44.5]} 9... O-O {[%clk
0:02:21.4]} 10. Bh6 {[%clk 0:02:07.2]} 10... g6 {[%clk 0:02:19.7]} 11. Nf3
{[%clk 0:01:40.5]} 11... Re8 {[%clk 0:02:08.1]} 12. h5 {[%clk 0:01:37.3]} 12...
Nf8 {[%clk 0:01:16.2]} 13. hxg6 {[%clk 0:01:36]} 13... fxg6 {[%clk 0:01:00]} 14.
O-O-O {[%clk 0:01:34.2]} 14... b5 {[%clk 0:00:41.4]} 15. Ng5 {[%clk 0:01:18.9]}
15... Bxg5 {[%clk 0:00:32.8]} 16. Bxg5 {[%clk 0:01:19.8]} 16... Qc7 {[%clk
0:00:27.3]} 17. Bf6 {[%clk 0:01:19.3]} 17... c4 {[%clk 0:00:18.5]} 18. Be2
{[%clk 0:01:08.7]} 18... Qf7 {[%clk 0:00:16.4]} 19. Rh6 {[%clk 0:01:06.5]} 19...
Nd7 {[%clk 0:00:14.8]} 20. Rdh1 {[%clk 0:00:59.2]} 20... Nxf6 {[%clk 0:00:14.7]}
21. exf6 {[%clk 0:01:00.1]} 21... e5 {[%clk 0:00:14.6]} 22. Qh4 {[%clk
0:00:58.9]} 1-0

[Event "*** Titled Tuesday Blitz"]
[Site "Chess.com"]
[Date "2020.11.03"]
[Round "1"]
[White "Chuchofrio1"]
[Black "grzechu96"]
[Result "0-1"]
[WhiteElo "2350"]
[BlackElo "2680"]
[TimeControl "180+1"]
[EndTime "10:05:56 PST"]
[Termination "grzechu96 won by resignation"]

1. e4 {[%clk 0:02:57.5]} 1... c5 {[%clk 0:02:59.4]} 2. Nc3 {[%clk 0:02:56.9]}
2... a6 {[%clk 0:02:58.5]} 3. f4 {[%clk 0:02:52.7]} 3... b5 {[%clk 0:02:58.1]}
4. Nf3 {[%clk 0:02:52.9]} 4... Bb7 {[%clk 0:02:58.4]} 5. d3 {[%clk 0:02:52.7]}
5... e6 {[%clk 0:02:58.2]} 6. g3 {[%clk 0:02:52.7]} 6... d5 {[%clk 0:02:57.9]}
7. e5 {[%clk 0:02:51.9]} 7... h5 {[%clk 0:02:57.4]} 8. Bg2 {[%clk 0:02:51.8]}
8... Nh6 {[%clk 0:02:57.8]} 9. Qe2 {[%clk 0:02:48.4]} 9... Nf5 {[%clk 0:02:58]}
10. Bd2 {[%clk 0:02:47]} 10... Nc6 {[%clk 0:02:58.2]} 11. Qf2 {[%clk 0:02:35.3]}
11... Be7 {[%clk 0:02:55.4]} 12. a3 {[%clk 0:02:31.4]} 12... b4 {[%clk
0:02:22.4]} 13. axb4 {[%clk 0:02:28.7]} 13... Nxb4 {[%clk 0:02:22.3]} 14. Rc1
{[%clk 0:02:26.4]} 14... Qc7 {[%clk 0:02:17.1]} 15. Ne2 {[%clk 0:02:26]} 15...
d4 {[%clk 0:02:01.3]} 16. Bxb4 {[%clk 0:02:20.3]} 16... cxb4 {[%clk 0:02:02.2]}
17. Nexd4 {[%clk 0:01:59.8]} 17... Bc5 {[%clk 0:01:59.6]} 18. c3 {[%clk
0:01:59.7]} 18... Bxf3 {[%clk 0:01:59.4]} 19. Qxf3 {[%clk 0:01:56.3]} 19... Rc8
{[%clk 0:01:52.6]} 20. Nxf5 {[%clk 0:01:55.7]} 20... exf5 {[%clk 0:01:52]} 21.
cxb4 {[%clk 0:01:46.4]} 21... Bxb4+ {[%clk 0:01:51.3]} 22. Ke2 {[%clk
0:01:46.8]} 22... Qd8 {[%clk 0:01:41.3]} 23. Rxc8 {[%clk 0:01:44.2]} 23... Qxc8
{[%clk 0:01:42.2]} 24. Qc6+ {[%clk 0:01:44.3]} 24... Qxc6 {[%clk 0:01:41.9]} 25.
Bxc6+ {[%clk 0:01:45.2]} 25... Ke7 {[%clk 0:01:42.5]} 26. Ra1 {[%clk 0:01:45.6]}
26... a5 {[%clk 0:01:42.5]} 27. Ba4 {[%clk 0:01:43]} 27... h4 {[%clk 0:01:41.1]}
28. Kf3 {[%clk 0:01:40.8]} 28... hxg3 {[%clk 0:01:41.1]} 29. hxg3 {[%clk
0:01:41.7]} 29... Rh2 {[%clk 0:01:41.5]} 30. b3 {[%clk 0:01:37.3]} 30... Bc5
{[%clk 0:01:41.4]} 31. g4 {[%clk 0:01:29.2]} 31... Rh3+ {[%clk 0:01:41.3]} 32.
Ke2 {[%clk 0:01:27.1]} 32... fxg4 {[%clk 0:01:40.6]} 33. d4 {[%clk 0:01:20.5]}
33... Bxd4 {[%clk 0:01:34.4]} 34. Rd1 {[%clk 0:01:20.3]} 34... Rh2+ {[%clk
0:01:23]} 35. Kd3 {[%clk 0:01:18.9]} 35... Bb6 {[%clk 0:01:11.3]} 36. Ke4 {[%clk
0:01:18.3]} 36... Re2+ {[%clk 0:01:09.4]} 37. Kf5 {[%clk 0:01:17.8]} 37... g3
{[%clk 0:00:58.9]} 38. Rd7+ {[%clk 0:01:16.8]} 38... Kf8 {[%clk 0:00:59.3]} 39.
Rb7 {[%clk 0:01:15.4]} 39... g6+ {[%clk 0:00:59.2]} 40. Kg4 {[%clk 0:01:14.9]}
40... g2 {[%clk 0:00:59.4]} 41. Rb8+ {[%clk 0:01:02.6]} 41... Kg7 {[%clk
0:00:58.7]} 0-1

[Event "*** Titled Tuesday Blitz"]
[Site "Chess.com"]
[Date "2020.11.03"]
[Round "1"]
[White "Shield12"]
[Black "Ajedrez_con_German"]
[Result "0-1"]
[WhiteElo "2905"]
[BlackElo "2472"]
[TimeControl "180+1"]
[EndTime "10:05:58 PST"]
[Termination "Ajedrez_con_German won by resignation"]

1. e4 {[%clk 0:03:00.9]} 1... e6 {[%clk 0:02:53.1]} 2. d4 {[%clk 0:03:00.9]}
2... d5 {[%clk 0:02:49]} 3. Nd2 {[%clk 0:03:01.8]} 3... Nf6 {[%clk 0:02:43.6]}
4. e5 {[%clk 0:03:02.1]} 4... Nfd7 {[%clk 0:02:40.5]} 5. Bd3 {[%clk 0:03:02.8]}
5... c5 {[%clk 0:02:40.1]} 6. c3 {[%clk 0:03:03.4]} 6... Nc6 {[%clk 0:02:34.7]}
7. Ne2 {[%clk 0:03:03.9]} 7... cxd4 {[%clk 0:02:30.6]} 8. cxd4 {[%clk
0:03:04.8]} 8... f6 {[%clk 0:02:30.5]} 9. exf6 {[%clk 0:03:05.7]} 9... Nxf6
{[%clk 0:02:30.4]} 10. Nf3 {[%clk 0:03:06.6]} 10... Bd6 {[%clk 0:02:30.1]} 11.
O-O {[%clk 0:03:07.5]} 11... O-O {[%clk 0:02:10.5]} 12. Bf4 {[%clk 0:03:06]}
12... Bxf4 {[%clk 0:02:07.3]} 13. Nxf4 {[%clk 0:03:06.9]} 13... Ne4 {[%clk
0:02:06.6]} 14. Qc1 {[%clk 0:03:04.9]} 14... Qf6 {[%clk 0:01:58.7]} 15. Qe3
{[%clk 0:03:00]} 15... Qxf4 {[%clk 0:01:53.7]} 16. Qe2 {[%clk 0:02:58.9]} 16...
Ng5 {[%clk 0:01:42.4]} 17. Nxg5 {[%clk 0:02:46.6]} 17... Qxg5 {[%clk 0:01:41.8]}
18. Rad1 {[%clk 0:02:45.9]} 18... Nxd4 {[%clk 0:01:36.8]} 19. Bxh7+ {[%clk
0:02:44.3]} 19... Kxh7 {[%clk 0:01:36.5]} 20. Rxd4 {[%clk 0:02:45.2]} 20... Bd7
{[%clk 0:01:31.4]} 21. Re1 {[%clk 0:02:44.1]} 21... Kg8 {[%clk 0:01:29.3]} 22.
h4 {[%clk 0:02:41.8]} 22... Qf6 {[%clk 0:01:27.1]} 23. Rg4 {[%clk 0:02:41.3]}
23... e5 {[%clk 0:01:20.7]} 24. Rg5 {[%clk 0:02:41.2]} 24... Rae8 {[%clk
0:01:15]} 25. f3 {[%clk 0:02:32.3]} 25... e4 {[%clk 0:00:59.7]} 26. f4 {[%clk
0:02:23.8]} 26... Bc6 {[%clk 0:00:51.5]} 27. Qg4 {[%clk 0:02:18.5]} 27... Rf7
{[%clk 0:00:32.7]} 28. Rg6 {[%clk 0:02:12.6]} 28... Qd4+ {[%clk 0:00:26.4]} 29.
Kh1 {[%clk 0:02:12.7]} 29... Bd7 {[%clk 0:00:26.3]} 30. Qg5 {[%clk 0:02:08]}
30... Ree7 {[%clk 0:00:24.2]} 31. h5 {[%clk 0:02:04.9]} 31... Qf2 {[%clk
0:00:23.8]} 32. Rd1 {[%clk 0:02:00.7]} 32... e3 {[%clk 0:00:20.5]} 33. Qg3
{[%clk 0:01:30.5]} 33... Qxg3 {[%clk 0:00:20.3]} 34. Rxg3 {[%clk 0:01:31.4]}
34... e2 {[%clk 0:00:21]} 35. Re1 {[%clk 0:01:31.6]} 35... Rxf4 {[%clk
0:00:19.6]} 36. Kg1 {[%clk 0:01:32]} 36... d4 {[%clk 0:00:18.1]} 37. Rd3 {[%clk
0:01:27.2]} 37... Bb5 {[%clk 0:00:16.5]} 0-1

[Event "*** Titled Tuesday Blitz"]
[Site "Chess.com"]
[Date "2020.11.03"]
[Round "1"]
[White "Shubinkirill2003"]
[Black "ural58"]
[Result "1-0"]
[WhiteElo "2693"]
[BlackElo "2353"]
[TimeControl "180+1"]
[EndTime "10:05:58 PST"]
[Termination "Shubinkirill2003 won by resignation"]

1. e4 {[%clk 0:03:00.9]} 1... d5 {[%clk 0:02:57]} 2. exd5 {[%clk 0:03:00.6]}
2... Qxd5 {[%clk 0:02:50.9]} 3. Nc3 {[%clk 0:03:00]} 3... Qa5 {[%clk 0:02:50.7]}
4. Nf3 {[%clk 0:02:59.6]} 4... Nf6 {[%clk 0:02:48.9]} 5. d4 {[%clk 0:02:59.2]}
5... Nc6 {[%clk 0:02:46.5]} 6. h3 {[%clk 0:02:54.5]} 6... Ne4 {[%clk 0:02:45.3]}
7. Bd3 {[%clk 0:02:36.2]} 7... Nxc3 {[%clk 0:02:44.1]} 8. bxc3 {[%clk
0:02:37.1]} 8... Qxc3+ {[%clk 0:02:43.6]} 9. Bd2 {[%clk 0:02:36]} 9... Qa3
{[%clk 0:02:44.1]} 10. d5 {[%clk 0:02:29.6]} 10... Nd8 {[%clk 0:02:39.2]} 11.
O-O {[%clk 0:02:23]} 11... e6 {[%clk 0:02:39.3]} 12. Re1 {[%clk 0:02:16.4]}
12... Be7 {[%clk 0:02:39.2]} 13. Qe2 {[%clk 0:01:59.4]} 13... Qd6 {[%clk
0:02:31.3]} 14. c4 {[%clk 0:01:46.6]} 14... h6 {[%clk 0:02:26.2]} 15. Rab1
{[%clk 0:01:40.8]} 15... b6 {[%clk 0:02:25.3]} 16. Nd4 {[%clk 0:01:36.9]} 16...
O-O {[%clk 0:02:12]} 17. Bb4 {[%clk 0:01:23.6]} 17... Qd7 {[%clk 0:02:11.7]} 18.
dxe6 {[%clk 0:01:23]} 18... Nxe6 {[%clk 0:01:57.8]} 19. Nxe6 {[%clk 0:01:20.5]}
19... fxe6 {[%clk 0:01:57.3]} 20. Bxe7 {[%clk 0:01:12.3]} 20... Qxe7 {[%clk
0:01:56.9]} 21. Qe4 {[%clk 0:01:12.9]} 21... Bd7 {[%clk 0:01:35.3]} 22. Qh7+
{[%clk 0:01:11.2]} 22... Kf7 {[%clk 0:01:35.6]} 23. Re3 {[%clk 0:01:03.8]} 23...
Bc6 {[%clk 0:01:32.5]} 24. Bg6+ {[%clk 0:01:00.3]} 24... Kf6 {[%clk 0:01:32.4]}
25. Bh5 {[%clk 0:01:00.4]} 25... Qc5 {[%clk 0:00:58.7]} 26. Qg6+ {[%clk
0:00:53.2]} 26... Ke7 {[%clk 0:00:59]} 27. Rd1 {[%clk 0:00:42.4]} 27... Bd7
{[%clk 0:00:40.7]} 28. Qxg7+ {[%clk 0:00:39.2]} 1-0

[Event "*** Titled Tuesday Blitz"]
[Site "Chess.com"]
[Date "2020.11.03"]
[Round "1"]
[White "djano"]
[Black "Hikaru"]
[Result "0-1"]
[WhiteElo "2472"]
[BlackElo "3232"]
[TimeControl "180+1"]
[EndTime "10:06:01 PST"]
[Termination "Hikaru won by resignation"]

1. d4 {[%clk 0:03:00.9]} 1... g6 {[%clk 0:02:58.2]} 2. Nf3 {[%clk 0:02:59.7]}
2... Bg7 {[%clk 0:02:58.1]} 3. c3 {[%clk 0:02:59.3]} 3... d6 {[%clk 0:02:57.9]}
4. Bg5 {[%clk 0:02:54.7]} 4... Nd7 {[%clk 0:02:57.6]} 5. Nbd2 {[%clk 0:02:54.5]}
5... Ngf6 {[%clk 0:02:57.6]} 6. e4 {[%clk 0:02:54.6]} 6... e5 {[%clk 0:02:57.5]}
7. Bd3 {[%clk 0:02:53.9]} 7... O-O {[%clk 0:02:57.2]} 8. O-O {[%clk 0:02:53.7]}
8... Re8 {[%clk 0:02:56.5]} 9. Re1 {[%clk 0:02:53.1]} 9... h6 {[%clk 0:02:56.9]}
10. Bh4 {[%clk 0:02:52.7]} 10... Qe7 {[%clk 0:02:48.3]} 11. a4 {[%clk
0:02:42.9]} 11... Qf8 {[%clk 0:02:45.9]} 12. a5 {[%clk 0:02:38.3]} 12... a6
{[%clk 0:02:45.6]} 13. b4 {[%clk 0:02:31.4]} 13... Nh5 {[%clk 0:02:36.1]} 14.
Bf1 {[%clk 0:02:27.2]} 14... Kh8 {[%clk 0:02:27.1]} 15. dxe5 {[%clk 0:02:19.9]}
15... Nxe5 {[%clk 0:02:26.4]} 16. Nxe5 {[%clk 0:02:18.9]} 16... Bxe5 {[%clk
0:02:26.1]} 17. Rc1 {[%clk 0:02:10.8]} 17... Bg7 {[%clk 0:02:23.1]} 18. Nc4
{[%clk 0:02:04.6]} 18... f5 {[%clk 0:02:21.7]} 19. exf5 {[%clk 0:01:59.7]} 19...
Rxe1 {[%clk 0:02:21.5]} 20. Qxe1 {[%clk 0:01:59.6]} 20... Bxf5 {[%clk
0:02:21.6]} 21. Ne3 {[%clk 0:01:55.9]} 21... Re8 {[%clk 0:02:19.4]} 22. Qd2
{[%clk 0:01:51.4]} 22... Be6 {[%clk 0:02:19.3]} 23. b5 {[%clk 0:01:39.4]} 23...
axb5 {[%clk 0:02:16.2]} 24. Bxb5 {[%clk 0:01:40.2]} 24... Ra8 {[%clk 0:02:16.9]}
25. Ra1 {[%clk 0:01:21]} 25... Qf4 {[%clk 0:02:13.7]} 26. Bg3 {[%clk 0:01:15.6]}
26... Nxg3 {[%clk 0:02:13.7]} 27. hxg3 {[%clk 0:01:16.5]} 27... Qe5 {[%clk
0:02:14.5]} 28. Bc4 {[%clk 0:01:01.3]} 28... Bxc4 {[%clk 0:02:08.9]} 29. Nxc4
{[%clk 0:01:02.2]} 29... Qxc3 {[%clk 0:02:09.4]} 30. Qxc3 {[%clk 0:00:58.2]}
30... Bxc3 {[%clk 0:02:09.3]} 31. Rb1 {[%clk 0:00:56.6]} 31... Ra7 {[%clk
0:01:57.1]} 32. Rb3 {[%clk 0:00:50.5]} 32... Bxa5 {[%clk 0:01:50.5]} 33. Nxa5
{[%clk 0:00:51.4]} 33... Rxa5 {[%clk 0:01:50.5]} 34. Rxb7 {[%clk 0:00:52.1]}
34... Ra1+ {[%clk 0:01:50.4]} 35. Kh2 {[%clk 0:00:51.7]} 35... Rc1 {[%clk
0:01:51.3]} 36. g4 {[%clk 0:00:49.7]} 36... d5 {[%clk 0:01:50.2]} 37. f4 {[%clk
0:00:48.7]} 37... d4 {[%clk 0:01:50.5]} 38. Kg3 {[%clk 0:00:46.7]} 38... Rc3+
{[%clk 0:01:46.3]} 39. Kf2 {[%clk 0:00:46]} 39... Kg7 {[%clk 0:01:45.4]} 40. f5
{[%clk 0:00:33.1]} 40... gxf5 {[%clk 0:01:29.4]} 41. gxf5 {[%clk 0:00:34]} 41...
Kf6 {[%clk 0:01:30.1]} 42. g4 {[%clk 0:00:34.3]} 42... Kg5 {[%clk 0:01:30.4]}
43. Rb8 {[%clk 0:00:26.7]} 43... Kxg4 {[%clk 0:01:29.8]} 44. f6 {[%clk
0:00:26.4]} 44... Rf3+ {[%clk 0:01:29.6]} 0-1